Cogmind - Beta 13 @@@ ROGUE MODE // 2024.04.21 @ 23:36:01 Player: obieonecnolly Result: Destroyed by G-34 Mercenary with Small Laser Performance ------------- Evolutions (1) 500 Regions Visited (2) 400 Robots Destroyed (71) 355 Value Destroyed (1404) 1404 Prototype IDs (4) 80 Alien Tech Used (0) 0 Bonus (33) 33 TOTAL SCORE: 2772 Bonus ------- High Alert Combat Kills 33 Cogmind --------- Core Integrity 0/400 Matter 284/300 Energy 460/460 System Corruption 0% Temperature Warm (182) Movement Rolling (155) Ox5 Location -9/Materials Parts ------- > --- POWER (2) -------- Heavy Ion Engine Heavy Ion Engine > --- PROPULSION (2) --- Wheel Wheel > --- UTILITY (3) ------ Huge Storage Unit Signal Interpreter Core Shielding > --- WEAPON (2) ------- Beam Rifle Autogun > --- INVENTORY (25) --- Ion Engine Light Ion Engine Aluminum Leg Aluminum Leg Wheel Hover Unit Improved Heat Sink Large Storage Unit Medium Matter Pod (100) Transport Network Coupler Melee Analysis Suite Reaction Control System Tractor Beam Beam Rifle Light Assault Rifle Light Assault Rifle Improved Datajack Peak State ------------ > --- POWER ------------ Light Nuclear Core Light Nuclear Core > --- PROPULSION ------- Wheel Wheel > --- UTILITY ---------- Huge Storage Unit Signal Interpreter Propulsion Shielding > --- WEAPON ----------- Particle Gun Improved Assault Rifle > --- INVENTORY -------- Light Ion Engine Light Nuclear Core Light Nuclear Core Light Treads Hover Unit Flight Unit Flight Unit Improved Heat Sink Small Storage Unit Large Storage Unit Medium Matter Pod Visual Processing Unit Visual Processing Unit Transport Network Coupler Reaction Control System Tractor Beam Particle Gun Particle Gun Light Cannon Light Cannon Improved Datajack [Rating: 19] Favorites ----------- Power Light Nuclear Core Engine Light Ion Engine Power Core Light Nuclear Core Propulsion Wheel Treads Light Treads Leg Aluminum Leg Wheel Wheel Hover Unit Hover Unit Flight Unit Flight Unit Utility Huge Storage Unit Device Heat Sink Storage Huge Storage Unit Processor Signal Interpreter Protection Propulsion Shielding Weapon Grenade Launcher Energy Gun Particle Gun Ballistic Gun Improved Assault Rifle Ballistic Cannon Light Cannon Launcher Grenade Launcher Build | -11 -10 -9 ------- Run | Yrd Mat Mat Slots Evolved 2 | . . 2 Power 1 | . . 1 Propulsion . | . . . Utility 1 | . . 1 Weapon . | . . . Parts Attached 76 | 5 19 52 Power 13 | 1 3 9 Engine 9 | 1 3 5 Core 4 | . . 4 Reactor . | . . . Propulsion 29 | 2 3 24 Treads 7 | . . 7 Leg 2 | . . 2 Wheel 17 | 2 3 12 Hover 1 | . . 1 Flight 2 | . . 2 Utility 13 | . 6 7 Device 1 | . 1 . Storage 2 | . 2 . Processor 5 | . 3 2 Hackware . | . . . Protection 5 | . . 5 Artifact . | . . . Weapon 21 | 2 7 12 Energy Gun 5 | . 1 4 Energy Cannon . | . . . Ballistic Gun 9 | 2 . 7 Ballistic Cannon 4 | . 3 1 Launcher 3 | . 3 . Special Weapon . | . . . Impact Weapon . | . . . Slashing Weapon . | . . . Piercing Weapon . | . . . Special Melee Weapon . | . . . Unidentified Prototypes 2 | . . 2 Parts Lost 18 | . 4 14 Power 6 | . 2 4 Propulsion 7 | . 2 5 Utility 1 | . . 1 Weapon 4 | . . 4 Highest Loss Streak 7 | . 3 7 To Critical Strikes . | . . . Average Slot Usage (%) 95 | . 94 96 Engine 9 | . 10 8 Core 6 | . . 11 Treads 2 | . . 4 Wheel 21 | . 27 17 Storage 12 | . 13 11 Processor 12 | . 13 12 Protection 5 | . . 8 Energy Gun 5 | . 6 4 Ballistic Gun 8 | . 1 14 Ballistic Cannon 4 | . 10 . Launcher 5 | . 9 2 Naked Turns . | . . . Heaviest Build 103 | 7 91 103 Greatest Support 40 | 20 20 40 Greatest Overweight (x) 12 | . 8 12 Average Overweight (x) 3 | . 3 4 Largest Inventory Capacity 25 | 5 25 25 Average Capacity 22 | 5 21 25 Most Carried 23 | 4 20 23 Average Carried 14 | 2 12 16 Final Capacity 25 | 5 25 25 Final Carried 19 | 3 19 17 Class Distribution -------------------- 56% | Scavenger-Mutant 43% | Mutant Dominant Class ---------------- Mutant | -10/Materials Scavenger-Mutant | -9/Materials Resources | -11 -10 -9 ----------- Run | Yrd Mat Mat Matter Collected 2031 | 280 675 1076 Remotely . | . . . Salvage Created 1788 | 75 514 1199 Parts 141 | 3 46 92 Haulers Intercepted 1 | . 1 . Recyclers Shooed 6 | . 4 2 Parts Field Recycled . | . . . Retrieved Matter . | . . . Parts Self-Destructed . | . . . Prevented . | . . . Kills | -11 -10 -9 ------- Run | Yrd Mat Mat Combat Hostiles Destroyed 37 | 1 12 24 Guns 21 | 1 . 20 Cannons 4 | . 3 1 AOE 11 | . 9 2 Classes Destroyed 12 | 2 4 6 Worker 16 | 1 5 10 Builder 7 | . 4 3 Tunneler 1 | . . 1 Hauler 1 | . 1 . Recycler 2 | . 1 1 Mechanic 1 | . . 1 Operator 1 | . . 1 Watcher 5 | . 3 2 Swarmer 9 | . . 9 Grunt 21 | 1 12 8 Duelist 1 | . . 1 Sentry 6 | . . 6 Best Kill Streak 6 | 2 4 6 Combat Bots Only 4 | 1 3 4 Max Kills in Single Turn 4 | 1 4 2 Gunslinging . | . . . Exploded 2 | . 2 2 Melee . | . . . Uniques/NPCs Destroyed . | . . . Combat | -11 -10 -9 -------- Run | Yrd Mat Mat Hostile Shots Fired 268 | 4 62 202 Missed 87 | 1 23 63 Damage Taken 2471 | 36 529 1906 Core 550 | 21 128 401 Absorbed by Shields . | . . . Redirected to Shielding 48 | . . 48 Regen/Repaired (Parts) 57 | . 10 47 Core Remaining (%) 65 | 91 40 . Volleys Fired 228 | 5 86 137 Largest 2 | 2 2 2 Hottest 100 | 40 95 100 Shots Fired 365 | 10 118 237 Gun 283 | 10 55 218 Cannon 55 | . 43 12 Launcher 27 | . 20 7 Special . | . . . Kinetic 258 | 10 54 194 Thermal 80 | . 44 36 Explosive 27 | . 20 7 Electromagnetic . | . . . Robot Hit Streak 21 | 2 9 21 Robot Miss Streak 4 | 1 4 4 Penetration Max . | . . . Secondary Targets 1 | . . 1 Max Gunslinging Chain 1 | . . 1 Shots Hit Robots 215 | 5 65 145 Core Hits 99 | 4 36 59 Critical Kills 1 | . . 1 Critical Parts Destroyed . | . . . Critical Strikes 5 | . 2 3 Burn 3 | . 1 2 Destroy 1 | . . 1 Blast 1 | . 1 . Melee Attacks . | . . . Impact . | . . . Slashing . | . . . Piercing . | . . . Sneak Attacks . | . . . Combat Hostiles . | . . . Follow-up Attacks . | . . . Damage Inflicted 4402 | 73 1942 2387 Guns 2607 | 67 443 2097 Cannons 539 | . 402 137 Explosions 1250 | . 1097 153 Melee . | . . . Ramming 6 | 6 . . Kinetic 2385 | 67 478 1840 Thermal 761 | . 367 394 Explosive 1250 | . 1097 153 Electromagnetic . | . . . Impact . | . . . Slashing . | . . . Piercing . | . . . Highest Corruption . | . . . Average Corruption . | . . . Corruption Purged . | . . . Corruption Blocked . | . . . Overload Shots . | . . . Overflow Damage 8 | . 8 . Projectiles . | . . . Explosions 8 | . 8 . Melee . | . . . Knockbacks 9 | . 5 4 Impact . | . . . Kinetic 9 | . 5 4 Secondary . | . . . Self-Inflicted Damage 84 | 3 . 81 Shots 4 | . . 4 Rammed 3 | 2 . 1 Targets Rammed 3 | 2 . 1 Kicked . | . . . Crushed . | . . . Highest Temperature 227 | . 120 227 Average Temperature 38 | . 34 41 Received Heat Transfer 954 | 18 309 627 Siege Activations . | . . . Robots Corrupted . | . . . Combat Hostiles . | . . . Parts Fried . | . . . Impact Corruptions . | . . . Robots Melted 1 | . . 1 Combat Hostiles 1 | . . 1 Parts Melted 3 | . . 3 Heat Transferred 2072 | . 962 1110 Parts Sabotaged . | . . . Parts Stolen . | . . . Parts Stripped . | . . . Power Chain Reactions . | . . . Alert | -11 -10 -9 ------- Run | Yrd Mat Mat Peak Influence 450 | 25 380 450 Initial 52 | . 16 52 Average 233 | 13 155 305 Maximum Alert Level 2 | . 1 2 Low Security (%) 42 | 100 83 9 Level 1 51 | . 16 80 Level 2 5 | . . 10 Level 3 . | . . . Level 4 . | . . . Level 5 . | . . . High Security . | . . . Max Security . | . . . Squads Dispatched 6 | . 3 3 Investigation 3 | . 2 1 Extermination . | . . . Reinforcement 3 | . 1 2 Assault . | . . . Garrison . | . . . Intercept . | . . . Searches Triggered . | . . . Construction Impeded 1 | . . 1 Haulers Reinforced . | . . . Active Scanning Responses . | . . . Cargo Convoy Interrupts . | . . . Stealth | -11 -10 -9 --------- Run | Yrd Mat Mat Distress Signals 3 | . 1 2 Communications Jammed . | . . . Distress Signals . | . . . Times Spotted 65 | 1 19 45 Peak Tracking Total 5 | 1 3 5 Tactical Retreats 5 | . 1 4 Traps | -11 -10 -9 ------- Run | Yrd Mat Mat Traps Triggered 4 | . 3 1 Indirectly . | . . . Trap Hack Attempts . | . . . Triggered . | . . . Disarmed . | . . . Reprogrammed . | . . . Reused . | . . . Traps Extracted . | . . . Installed . | . . . Triggered . | . . . Machines | -11 -10 -9 ---------- Run | Yrd Mat Mat Machines Disabled 5 | . 4 1 Max in Single Turn 2 | . 2 1 Machines Repaired . | . . . Machines Dismantled . | . . . Machines Sabotaged . | . . . Overloaded Fab Kills . | . . . Hacking | -11 -10 -9 --------- Run | Yrd Mat Mat Machines Accessed 13 | . 7 6 Terminals 8 | . 4 4 Fabricators . | . . . Repair Stations 3 | . 1 2 Recycling Units 2 | . 2 . Scanalyzers . | . . . Garrison Access . | . . . Total Hacks 30 | . 17 13 Successful 19 | . 11 8 Failed 11 | . 6 5 Catastrophic 1 | . 1 . Database Lockouts . | . . . Manual . | . . . Terminals 20 | . 11 9 Fabricators . | . . . Repair Stations 6 | . 2 4 Recycling Units 4 | . 4 . Scanalyzers . | . . . Garrison Access . | . . . Terminal Hacks 11 | . 7 4 Record 7 | . 5 2 Prototype ID Bank 1 | . . 1 Alert Level 2 | . 2 . Dispatch Records 1 | . . 1 Fabricator Hacks . | . . . Repair Station Hacks 6 | . 2 4 Scan Component 3 | . 1 2 Repair 3 | . 1 2 Recycling Unit Hacks 2 | . 2 . Recycle Component 1 | . 1 . Report Inventory 1 | . 1 . Scanalyzer . | . . . Garrison Access Hacks . | . . . Unauthorized Hacks . | . . . Terminals . | . . . Fabricators . | . . . Repair Stations . | . . . Recycling Units . | . . . Scanalyzers . | . . . Garrison Access . | . . . Data Cores Recovered . | . . . Used . | . . . Hacking Detections 7 | . 4 3 Full Trace Events 1 | . 1 . Feedback Events . | . . . Feedback Blocked . | . . . Robot Schematics Acquired . | . . . Robots Built . | . . . Authchips . | . . . Time . | . . . Total Robot Build Rating . | . . . Part Schematics Acquired . | . . . Parts Built . | . . . Authchips . | . . . Time . | . . . Total Part Build Rating . | . . . Parts Repaired 3 | . 1 2 Time 84 | . 26 58 Parts Recycled 1 | . 1 . Recycled Matter . | . . . Retrieved Matter . | . . . Retrieved Components . | . . . Parts Scanalyzed . | . . . Part Schematics Acquired . | . . . Parts Damaged . | . . . Bothacking | -11 -10 -9 ------------ Run | Yrd Mat Mat Used RIF Installer . | . . . Robots Hacked . | . . . Non-combat . | . . . Combat . | . . . Robot Hacks Applied . | . . . Relay Couplers Released . | . . . Fabnet Peak Effective % . | . . . Robots Rewired . | . . . Allies Hacked . | . . . Hacks Repelled . | . . . Allies | -11 -10 -9 -------- Run | Yrd Mat Mat Total Allies . | . . . Largest Group . | . . . Highest-Rated Group . | . . . Highest-Rated Ally . | . . . Total Orders . | . . . Ally Attacks . | . . . Total Damage . | . . . Kills . | . . . Allies Corrupted . | . . . Allies Melted . | . . . Intel | -11 -10 -9 ------- Run | Yrd Mat Mat Robot Analysis Total . | . . . Derelict Logs Recovered . | . . . Drone Launches . | . . . Drone Recoveries . | . . . Exploration | -11 -10 -9 ------------- Run | Yrd Mat Mat Turns Passed 3683 | 145 1472 2066 Spaces Moved 2022 | 145 926 951 Core 17 | 17 . . Treads 87 | . . 87 Legs . | . . . Wheels 1917 | 128 926 863 Hover . | . . . Flight 1 | . . 1 Fastest Speed 50 | 50 80 140 Average Speed 142 | 76 128 165 Slowest Speed 997 | 80 200 997 Overloaded Moves . | . . . Propulsion Burnouts . | . . . Robots Hopped . | . . . Cave-ins Triggered . | . . . Exploration Rate (%) 46 | 6 91 43 Regions Visited 2 Branch Regions . Pre-discovered Areas . | . . . Known Exits Taken 1 | . 1 . Unknown Exits Taken 1 | 1 . . Scrap Searched . | . . . Spaces Dug . | . . . Terrain Destroyed 168 | . 117 51 Melee . | . . . Projectile . | . . . AOE 168 | . 117 51 Terrain Rammed . | . . . Walls Destroyed . | . . . Machines Disabled . | . . . Actions | -11 -10 -9 --------- Run | Yrd Mat Mat Total 2475 | 170 1088 1217 Wait 10 | . 10 . Move 2020 | 144 925 951 Hop . | . . . Pick Up 89 | 11 38 40 Fast Attach . | . . . Attach 46 | 5 11 30 Detach 13 | . 1 12 Swap 31 | . 8 23 Drop 35 | 3 9 23 Fire 228 | 5 86 137 Melee . | . . . Ram 3 | 2 . 1 Kick . | . . . Crush . | . . . Escape Stasis . | . . . Rewire . | . . . Trap . | . . . Miscellaneous . | . . . Route ------- -11/Scrapyard -10/Materials (discovered 5 exits: *Mat x2 / *Min x2 / *Sub) -9/Materials (discovered 5 exits: *Mat x2 / *Min x2 / *Sto) History --------- Turn | Location | Event 2 | -11/Scrapyard | Met Revision 17 56 | -11/Scrapyard | Discovered new exit (range 8) 146 | -11/Scrapyard | Entered Materials 260 | -10/Materials | Discovered new exit (range 10) 308 | -10/Materials | Build established: Mutant 658 | -10/Materials | Discovered new exit (range 9) 670 | -10/Materials | Identified exit to Mines 827 | -10/Materials | Core integrity fell below 50% 867 | -10/Materials | Lost 3 parts (1p2n) 938 | -10/Materials | Discovered new exit (range 4) 942 | -10/Materials | Identified exit to Materials 1161 | -10/Materials | Discovered new exit (range 4) 1165 | -10/Materials | Identified exit to Subcaves 1283 | -10/Materials | Discovered exit to Mines (range 13) 1373 | -10/Materials | Repaired Grenade Launcher? 1496 | -10/Materials | Build established: Scavenger-Mutant 1618 | -10/Materials | Entered another Materials area 1618 | -9/Materials | Evolved 2 slots: Power x1, Utility x1 1765 | -9/Materials | Discovered new exit (range 15) 1783 | -9/Materials | Identified exit to Mines 2593 | -9/Materials | Discovered new exit (range 14) 2635 | -9/Materials | Discovered new exit (range 16) 2635 | -9/Materials | Identified exit to Storage 2655 | -9/Materials | Identified exit to Materials 2753 | -9/Materials | Core integrity fell below 50% 2792 | -9/Materials | Lost 7 parts (2p2n1u2w) 2876 | -9/Materials | Core integrity fell below 20% 3072 | -9/Materials | Discovered exit to Mines (range 16) 3403 | -9/Materials | Repaired Core Shielding? 3472 | -9/Materials | Repaired Beam Rifle? 3668 | -9/Materials | Discovered exit to Materials (range 4) 3684 | -9/Materials | Destroyed by G-34 Mercenary with Small Laser Last Messages --------------- 03440_ Connecting with Repair Station... >>Scan(Beam Rifle) Scanning Beam Rifle... Ready to Repair: Beam Rifle Rating: 2 Time: 32 >>Repair Repairing Beam Rifle... ETC: 32 03472_ >> REPAIR: Completed Beam Rifle? 03475_ K-01 Serf collects debris. 03500_ Acquired Core Shielding. 03530_ Acquired 10 matter. 03560_ Acquired Beam Rifle. 03646_ Terminal unresponsive. 03668_ EXIT=FOUND: MATERIALS 03674_ K-01 Serf destroyed. 03674_ G-34 Mercenary destroyed. [Achievement: First Step to Greatness] Map ----- +----------------------------------------------------+ | ?????????????????????????????####### ### #?? | | ???????????????????????????????????# """ #?# #?? | | ???????????????????????????????????# """ #?# #?? | | ???????????????????????????????????# """ #?# #?? | | ???????????????????????????????????# ? #?# #?? | | ??????????????????????????????################%### | | ??????????????????????????????# ## [% | | ??????????????????????????????# """ """ # | | ??????????????????????????????#""" """ """ + | | ??????????????????????????????#"R """ """ #!% | | ??????????????????????????????#""" ##%[ | | ??????????????????????????????# !##|### | | ??????????????????? ?????????################ #?# | | ???????????????????# ??????????????????######+### | | ???????????????????# ??????????????????# # | | ???????????????????# ??????????????????# """"" # | | ???????????????????# ???######?????????# """"" # | | ???????????????????# ??? !#?????????# """"" # | | ???????????????????# ?? #?????????# + | | ???????????????????# ???""" #?????????#""" # | | ???????????????????+ ???""" #?????????#"R # | | ???????????????????# ????"" #?????????#""" # | | ???????????????????# ???? ??????????# # | | ???????????????????# #####+##################### | | ???????????????????#= g o !% | | ???????????????????#%= = @ #################### | | ???????????????????#* #?????????????????## | | ???????????????? + ###+#######??????????????# | | ??????????????? # # #??????????????# | | ???????????????????#